bitfinex/quotes_BTCUSD_20250716
["timestamp","ask_amount","ask_price","bid_price","bid_amount"]
[1752674511414,0.03532858,118730.0,118720.0,1.8728859]
[1752674511580,0.03532858,118730.0,118720.0,1.6596869]
[1752674512007,0.02690633,118730.0,118720.0,2.0697209]
[1752674512163,0.03532865,118730.0,118720.0,1.8248029]
[1752674512363,0.04375105,118730.0,118720.0,1.4487529]
[1752674512658,0.2122009,118730.0,118720.0,1.44033022]
[1752674512883,0.18693429,118730.0,118720.0,1.08267613]
[1752674513118,0.18693429,118730.0,118720.0,0.002]
[1752674513372,0.18693429,118730.0,118720.0,0.14064]
[1752674513571,0.18693429,118730.0,118720.0,0.98424985]
[1752674513784,0.18693429,118730.0,118720.0,0.98224985]
[1752674516107,0.18693429,118730.0,118720.0,0.47864]
[1752674517258,0.18532507,118710.0,118700.0,0.50360985]
[1752674517460,0.18532507,118710.0,118700.0,0.72776013]
[1752674517671,0.18532507,118710.0,118700.0,1.25310123]
[1752674517911,0.18532507,118710.0,118700.0,1.06776013]
[1752674518148,0.17690154,118710.0,118700.0,1.23625212]
[1752674518355,0.17690154,118710.0,118700.0,1.24467664]
[1752674518568,0.17690154,118710.0,118700.0,1.58482902]
[1752674518760,0.00842353,118710.0,118700.0,1.62455326]
[1752674519078,0.17689944,118720.0,118700.0,1.64951821]
[1752674519282,0.18532226,118720.0,118710.0,2.02813534]
[1752674519420,0.19374494,118720.0,118710.0,2.03655894]
[1752674519635,0.20216812,118720.0,118710.0,2.02813534]
[1752674519835,0.19374544,118720.0,118710.0,1.95023287]
[1752674520037,0.19374544,118720.0,118710.0,0.97496098]
[1752674520226,0.18532226,118720.0,118710.0,1.84589552]
[1752674520421,0.186934,118730.0,118720.0,0.16846361]
[1752674520734,0.18693364,118730.0,118720.0,1.28743567]
[1752674520921,0.20377836,118730.0,118720.0,1.26848374]
[1752674521129,0.19535632,118730.0,118720.0,1.24460692]
[1752674521344,0.18693414,118730.0,118720.0,1.07614331]
[1752674521552,0.17851189,118730.0,118720.0,1.06772013]
[1752674521783,0.17851189,118730.0,118720.0,1.24460692]
[1752674521979,0.17851189,118730.0,118720.0,1.26145291]
[1752674522177,0.00164,118730.0,118720.0,1.30803933]
[1752674522376,0.01848401,118730.0,118720.0,2.05952831]
[1752674522547,0.18693385,118730.0,118720.0,0.56411028]
[1752674522742,0.18693385,118730.0,118720.0,0.42551028]
[1752674523010,0.18693385,118730.0,118720.0,0.47932]
[1752674523243,0.21843385,118730.0,118720.0,0.34]
[1752674523447,0.21843385,118730.0,118720.0,0.47928]
[1752674524202,0.18693385,118730.0,118720.0,1.15335346]
[1752674524401,0.19535575,118730.0,118720.0,1.23886374]
[1752674524606,0.18693385,118730.0,118720.0,1.07682331]
[1752674525594,0.19535632,118730.0,118720.0,1.06840013]
[1752674525798,0.18693421,118730.0,118720.0,1.06840013]
[1752674526592,0.18693421,118730.0,118720.0,0.47928]
[1752674526792,0.19292605,118730.0,118720.0,0.47928]
[1752674527005,0.20792605,118730.0,118720.0,0.47928]
[1752674527165,0.20792605,118730.0,118720.0,0.34]
[1752674527362,0.18532536,118710.0,118700.0,0.003]
[1752674527575,0.18532536,118710.0,118700.0,0.503]
[1752674527576,0.20042536,118710.0,118700.0,0.503]
[1752674527811,0.21542536,118710.0,118700.0,0.14244]
[1752674528213,0.21542536,118710.0,118700.0,0.48244]
[1752674529314,0.18532536,118710.0,118700.0,0.98604985]
[1752674529528,0.01684713,118710.0,118700.0,1.15454184]
[1752674529754,0.00842325,118710.0,118700.0,1.26532505]
[1752674529956,0.03369377,118710.0,118700.0,1.28042505]
[1752674530185,0.01684657,118710.0,118700.0,1.28042505]
[1752674530392,0.20216815,118720.0,118710.0,0.19374889]
[1752674530614,0.18529787,118730.0,118720.0,0.66846361]
[1752674530814,0.18529787,118730.0,118720.0,0.91362973]
[1752674531224,0.18529787,118730.0,118720.0,0.90520692]
[1752674531567,0.17687547,118730.0,118720.0,0.72832013]
[1752674532820,0.17687547,118730.0,118720.0,0.22471028]
[1752674533038,0.1853096,118720.0,118710.0,1.01208765]
[1752674533237,0.1853096,118720.0,118710.0,1.23655793]
[1752674533439,0.17688664,118720.0,118710.0,1.06808013]
[1752674533672,0.17688664,118720.0,118710.0,1.43440967]
[1752674534217,0.168453,118730.0,118720.0,0.17688664]
[1752674534335,0.17687174,118730.0,118720.0,0.79092966]
[1752674534545,0.18529392,118730.0,118720.0,0.77442973]
[1752674534975,0.17687174,118730.0,118720.0,0.76600677]
[1752674535171,0.17687174,118730.0,118720.0,0.77442973]
[1752674535350,0.17687174,118730.0,118720.0,0.78285255]
[1752674535748,0.20213872,118730.0,118720.0,0.7912753]
[1752674535948,0.18529429,118730.0,118720.0,0.75758374]
[1752674536152,0.17687189,118730.0,118720.0,0.75758374]
[1752674536352,0.17687189,118730.0,118720.0,0.58912013]
[1752674536964,0.17687189,118730.0,118710.0,0.34]
[1752674536965,0.17688664,118720.0,118710.0,0.34]
[1752674537174,0.17559673,118720.0,118710.0,0.92912013]
[1752674537415,0.17559673,118720.0,118710.0,1.06776013]
[1752674537658,0.17559673,118720.0,118710.0,0.92912013]
[1752674537863,0.17559673,118720.0,118700.0,0.003]
[1752674537864,0.17690154,118710.0,118700.0,0.003]
[1752674538068,0.17690154,118710.0,118700.0,0.48164]
[1752674538287,0.17690154,118710.0,118700.0,0.14164]
[1752674538710,0.17690154,118710.0,118700.0,0.48164]
[1752674539103,0.18532493,118710.0,118700.0,1.23925212]
[1752674539357,0.20217248,118710.0,118700.0,1.25610095]
[1752674540007,0.18532535,118710.0,118700.0,1.25610095]
[1752674540431,0.18532535,118710.0,118700.0,1.25610102]
[1752674540432,0.18528239,118710.0,118700.0,1.25610102]
[1752674540638,0.17685865,118710.0,118700.0,1.24767664]
[1752674540889,0.17685865,118710.0,118700.0,0.75249124]
[1752674541105,0.17685865,118710.0,118700.0,1.26652547]
[1752674541320,0.17685865,118710.0,118700.0,1.27494971]
[1752674541550,0.18528225,118710.0,118700.0,1.27494971]
[1752674541763,0.18528225,118710.0,118700.0,2.19389771]
[1752674541973,0.18528225,118710.0,118700.0,1.89440047]
[1752674542154,0.18528225,118710.0,118700.0,1.87814347]
[1752674542483,0.18528225,118710.0,118700.0,1.88656778]
[1752674542680,0.18528225,118710.0,118700.0,1.51943347]
[1752674542855,0.1684778,118710.0,118700.0,1.24125212]
[1752674543035,0.1684778,118710.0,118700.0,1.24967671]
[1752674543252,0.1684778,118710.0,118700.0,1.25810123]
[1752674543449,0.1684778,118710.0,118700.0,1.25846504]
[1752674543768,0.18532507,118710.0,118700.0,1.27531373]
[1752674543977,0.02527116,118710.0,118700.0,1.28373797]
[1752674544192,0.19374896,118710.0,118700.0,1.27531373]
[1752674544612,0.18532543,118710.0,118700.0,1.26688942]
[1752674544817,0.17690169,118710.0,118700.0,1.25004052]
[1752674545029,0.17690169,118710.0,118700.0,0.43087409]
[1752674545030,0.1684778,118710.0,118700.0,0.43087409]
[1752674545243,0.1998778,118710.0,118700.0,0.48400381]
[1752674546694,0.78899793,118710.0,118700.0,0.00536381]
[1752674547519,0.28538808,118710.0,118700.0,0.00536381]
[1752674548140,0.28538808,118710.0,118700.0,0.00336381]
[1752674548360,0.1998778,118710.0,118700.0,0.00336381]
[1752674549142,0.1998778,118710.0,118700.0,0.14200381]
[1752674550976,0.78899793,118710.0,118700.0,0.00336381]
[1752674551635,0.92763793,118710.0,118700.0,0.00336381]
[1752674552389,0.42402808,118710.0,118700.0,0.00336381]
[1752674553212,0.3385178,118710.0,118700.0,0.00336381]
[1752674554034,0.42402808,118710.0,118700.0,0.00336381]
[1752674555022,0.28538808,118710.0,118700.0,0.00336381]
[1752674556724,0.1998778,118710.0,118700.0,0.00336381]
[1752674556925,0.1998778,118710.0,118700.0,0.14200381]
[1752674557133,0.1998778,118710.0,118700.0,0.00336381]
[1752674557623,0.1684778,118710.0,118700.0,0.00336381]
[1752674558247,0.1684778,118710.0,118700.0,0.14196381]
[1752674558661,0.1837778,118710.0,118700.0,0.14196381]
[1752674558888,0.1837778,118710.0,118700.0,0.00336381]
[1752674559117,0.1995778,118710.0,118700.0,0.14196381]
[1752674559929,0.1995778,118710.0,118700.0,0.00336381]
[1752674560306,0.1995778,118710.0,118700.0,0.14196381]
[1752674566048,0.1995778,118710.0,118700.0,0.00336381]
[1752674567100,0.18570672,118720.0,118710.0,0.34]
[1752674567328,0.18570672,118720.0,118710.0,1.16611146]
[1752674567541,0.17728376,118720.0,118710.0,0.47892381]
[1752674568193,0.21028376,118720.0,118710.0,0.47892381]
[1752674568405,0.17728376,118720.0,118710.0,0.47892381]
[1752674568842,0.17728376,118720.0,118710.0,0.98253366]
[1752674569059,0.17728376,118720.0,118710.0,0.49542381]
[1752674569318,0.17728376,118720.0,118710.0,1.01423366]
[1752674569534,0.00039494,118720.0,118710.0,2.11259572]
[1752674569740,0.00881748,118720.0,118710.0,2.08679539]
[1752674569952,0.01724023,118720.0,118710.0,2.0867954]
[1752674570162,0.00881748,118720.0,118710.0,2.0867954]
[1752674570591,0.19412722,118720.0,118710.0,1.57224556]
[1752674570796,0.00881762,118720.0,118710.0,1.56667669]
[1752674571004,0.00039494,118720.0,118710.0,1.58964093]
[1752674571236,0.00039494,118720.0,118710.0,1.08603108]
[1752674571445,0.00039494,118720.0,118710.0,1.58964093]
[1752674571801,0.00039494,118720.0,118710.0,6.31645693]
[1752674572030,0.00039494,118720.0,118710.0,6.34225726]
[1752674572236,0.01142062,118750.0,118740.0,0.02526442]
[1752674572411,0.01996854,118750.0,118740.0,1.2924036]
[1752674572618,0.01996854,118750.0,118740.0,1.28398234]
[1752674572619,0.04523084,118750.0,118740.0,1.28398234]
[1752674572827,0.20523148,118750.0,118740.0,1.28398234]
[1752674573027,0.21365253,118750.0,118740.0,1.29240374]
[1752674573233,0.03681043,118750.0,118740.0,1.300825]
[1752674573436,0.03681043,118750.0,118740.0,1.28398248]
[1752674573437,0.20523147,118750.0,118740.0,1.28398248]
[1752674573658,0.18839016,118750.0,118740.0,1.27556087]
[1752674573877,0.18839016,118750.0,118740.0,1.26713918]
[1752674574079,0.18839016,118750.0,118740.0,1.29197449]
[1752674574484,0.18839016,118750.0,118740.0,1.3003961]
[1752674574692,0.01154764,118750.0,118740.0,1.31723883]
[1752674574901,0.01996819,118750.0,118740.0,1.31723883]
[1752674575115,0.02838888,118750.0,118740.0,1.31723883]
[1752674575321,0.02838895,118750.0,118740.0,1.31723883]
[1752674575737,0.03680971,118750.0,118740.0,1.31723883]
[1752674575943,0.01154764,118750.0,118740.0,1.31723883]
[1752674576282,0.02838881,118750.0,118740.0,1.31723883]
[1752674576697,0.01996812,118750.0,118740.0,1.31723883]
[1752674576954,0.20523062,118750.0,118740.0,1.30881757]
[1752674577166,0.19681078,118750.0,118740.0,1.3003561]
[1752674577374,0.19681078,118750.0,118740.0,1.30035609]
[1752674577603,0.18839016,118750.0,118740.0,1.30035609]
[1752674577809,0.18839016,118750.0,118740.0,1.30877763]
[1752674578022,0.18839016,118750.0,118740.0,1.3171991]
[1752674578246,0.18839016,118750.0,118740.0,1.30877763]
[1752674578669,0.18839016,118750.0,118740.0,1.31719903]
[1752674578900,0.01154764,118750.0,118740.0,1.32562029]
[1752674579103,0.01996819,118750.0,118740.0,1.32562029]
[1752674579303,0.03680971,118750.0,118740.0,2.29019429]
[1752674579726,0.02838888,118750.0,118740.0,2.29019429]
[1752674579920,0.01996819,118750.0,118740.0,2.29019429]
[1752674580132,0.03680979,118750.0,118740.0,2.29019429]
[1752674580337,0.19681043,118750.0,118740.0,0.78628532]
[1752674580514,0.19681043,118750.0,118740.0,1.42833517]
[1752674580730,0.19681043,118750.0,118740.0,1.43675678]
[1752674580931,0.01996847,118750.0,118740.0,1.45359951]
[1752674581141,0.00312723,118750.0,118740.0,1.45359951]
[1752674581358,0.00312723,118750.0,118740.0,4.07346821]
[1752674581782,0.00312723,118750.0,118740.0,4.27554821]
[1752674582457,0.00312723,118750.0,118740.0,6.4316442]
[1752674582601,0.00312723,118750.0,118740.0,5.92803435]
[1752674582808,0.00312723,118750.0,118740.0,4.82966035]
[1752674583017,0.18838988,118750.0,118740.0,0.45070939]
[1752674583223,0.21968988,118750.0,118740.0,0.02519911]
[1752674583427,0.21968988,118750.0,118740.0,0.16359911]
[1752674583632,0.80881001,118750.0,118740.0,0.0003638]
[1752674583837,0.94721001,118750.0,118740.0,1e-08]
[1752674584029,0.18532507,118710.0,118700.0,0.003]
[1752674584235,0.18532507,118710.0,118700.0,0.1414]
[1752674585073,0.18532507,118710.0,118700.0,0.4814]
[1752674585314,0.18540985,118710.0,118700.0,0.4814]
[1752674585940,0.18540985,118710.0,118700.0,1.00040985]
[1752674586154,0.17698632,118710.0,118700.0,1.08592013]
[1752674586567,0.17698632,118710.0,118700.0,1.25441212]
[1752674586774,0.17698632,118710.0,118700.0,1.26283657]
[1752674586977,0.17698632,118710.0,118700.0,1.24743671]
[1752674587192,0.16856258,118710.0,118700.0,1.24743671]
[1752674587593,0.17698632,118710.0,118700.0,1.26428554]
[1752674587813,0.02535509,118710.0,118700.0,3.03533364]
[1752674588024,0.00850803,118710.0,118700.0,3.05093364]
[1752674588241,8.478e-05,118710.0,118700.0,3.55454349]
[1752674588446,8.478e-05,118710.0,118700.0,6.67743134]
[1752674588668,8.478e-05,118710.0,118700.0,6.67573767]
[1752674588884,8.478e-05,118710.0,118700.0,5.16532234]
[1752674589092,8.478e-05,118710.0,118700.0,4.47001749]
[1752674589300,8.478e-05,118710.0,118700.0,4.42642849]
[1752674589517,0.00850803,118710.0,118700.0,4.44965849]
[1752674589735,8.478e-05,118710.0,118700.0,3.76000749]
[1752674589961,0.0085081,118710.0,118700.0,3.76000749]
[1752674590200,0.02535509,118710.0,118700.0,1.60780808]
[1752674590410,0.0085081,118710.0,118700.0,1.64938073]
[1752674590621,0.00842332,118710.0,118700.0,2.57047358]
[1752674590834,0.01684671,118710.0,118700.0,2.56204962]
[1752674591048,0.02527045,118710.0,118700.0,2.56204962]
[1752674591255,0.20217178,118710.0,118700.0,1.86272994]
[1752674591467,0.18532543,118710.0,118700.0,0.93212013]
[1752674591675,0.18532543,118710.0,118700.0,0.08851028]
[1752674591892,0.18532543,118710.0,118700.0,0.14132]
[1752674592359,0.18532543,118710.0,118700.0,0.582735]
[1752674593005,0.18532543,118710.0,118700.0,0.590074]
[1752674593214,0.18532543,118710.0,118700.0,1.09368385]
[1752674594064,0.18532543,118710.0,118700.0,1.13681285]
[1752674596835,0.18532543,118710.0,118700.0,1.07044013]
[1752674597060,0.18532543,118710.0,118700.0,0.56683028]
[1752674597518,0.18532543,118710.0,118700.0,0.343]
[1752674597717,0.21702543,118710.0,118700.0,0.48128]
[1752674597945,0.18532543,118710.0,118700.0,0.48128]
[1752674598167,0.18532507,118710.0,118700.0,1.15033697]
[1752674598367,0.00842332,118710.0,118700.0,1.29576505]
[1752674598629,0.20217185,118710.0,118700.0,1.28734095]
[1752674598795,0.20217185,118710.0,118700.0,1.24731664]
[1752674598796,0.18532514,118710.0,118700.0,1.24731664]
[1752674599011,0.17690154,118710.0,118700.0,0.93212013]
[1752674599215,0.17690154,118710.0,118700.0,0.48128]
[1752674599483,0.17690154,118710.0,118700.0,0.343]
[1752674599954,0.17690154,118710.0,118700.0,0.48128]
[1752674602061,0.17690154,118710.0,118700.0,1.15338184]
[1752674602285,0.17690154,118710.0,118700.0,1.17023067]
[1752674602478,0.17690154,118710.0,118700.0,0.98488985]
[1752674602685,0.17690154,118710.0,118700.0,1.17023095]
[1752674602906,0.17528719,118720.0,118710.0,0.51690161]
[1752674603113,0.17528719,118720.0,118710.0,0.92912013]
[1752674603318,0.17528719,118720.0,118710.0,1.09759793]
[1752674603536,0.17528719,118720.0,118710.0,1.11444563]
[1752674603745,0.17528719,118720.0,118710.0,1.12286937]
[1752674603951,0.16686409,118720.0,118710.0,1.11444563]
[1752674604154,0.15844091,118720.0,118710.0,0.92912013]
[1752674605315,0.15844091,118720.0,118710.0,0.34]
[1752674605528,0.18954091,118720.0,118710.0,0.47824]
[1752674606209,0.18954091,118720.0,118710.0,0.34]
[1752674606441,0.17690154,118710.0,118700.0,0.003]
[1752674606673,0.19230154,118710.0,118700.0,0.003]
[1752674606917,0.20790154,118710.0,118700.0,0.1412]
[1752674608038,0.20790154,118710.0,118700.0,0.64480985]
[1752674608257,0.17690154,118710.0,118700.0,0.64480985]
[1752674610231,0.18532521,118710.0,118700.0,0.89881212]
[1752674610441,0.17690154,118710.0,118700.0,0.90723664]
[1752674610655,0.01684727,118710.0,118700.0,0.9403854]
[1752674610864,0.18532507,118710.0,118700.0,0.9403854]
[1752674611498,0.18532507,118710.0,118700.0,0.94038547]
[1752674611943,0.18532507,118710.0,118700.0,0.94880971]
[1752674612158,0.02527045,118710.0,118700.0,3.69008751]
[1752674612342,0.01516112,118710.0,118700.0,3.69008751]
[1752674612481,0.1853096,118720.0,118710.0,0.20162536]
[1752674612719,0.1853096,118720.0,118710.0,0.79074549]
[1752674612921,0.01684557,118720.0,118710.0,0.79916902]
[1752674613126,0.19371604,118730.0,118720.0,0.20160946]
[1752674613314,0.19371604,118730.0,118720.0,0.72728013]
[1752674613315,0.185294,118730.0,118720.0,0.72728013]
[1752674614596,0.16844942,118730.0,118710.0,0.84360985]
[1752674614815,0.17688664,118720.0,118710.0,0.92912013]
[1752674615018,0.17688664,118720.0,118710.0,1.06724013]
[1752674615641,0.1853096,118720.0,118710.0,3.11213049]
[1752674615861,0.17688664,118720.0,118710.0,1.53451413]
[1752674616066,0.17688664,118720.0,118710.0,1.32960713]
[1752674616696,0.19278664,118720.0,118710.0,0.47812]
[1752674616904,0.20848664,118720.0,118710.0,0.47812]
[1752674618376,0.20848664,118720.0,118710.0,0.98172985]
[1752674618588,0.17688664,118720.0,118710.0,0.98172985]
[1752674619647,0.16846361,118720.0,118710.0,0.98172985]
[1752674619857,0.16846361,118720.0,118710.0,1.23571793]
[1752674620094,0.16846361,118720.0,118710.0,1.06724013]
[1752674620572,0.16846361,118720.0,118710.0,0.56363028]
[1752674620884,0.20066361,118720.0,118710.0,0.47808]
[1752674621085,0.20066361,118720.0,118710.0,0.50302758]
[1752674621303,0.20066361,118720.0,118710.0,0.36494758]
[1752674621516,0.20066361,118720.0,118710.0,0.50302758]
[1752674623168,0.20066361,118720.0,118710.0,1.00663743]
[1752674623375,0.16846361,118720.0,118710.0,1.00663743]
[1752674624430,0.16846361,118720.0,118710.0,1.02323743]
[1752674624631,0.16846361,118720.0,118710.0,1.00663743]
[1752674625186,0.16846361,118720.0,118710.0,1.26062551]
[1752674625389,0.16846361,118720.0,118710.0,1.10814771]
[1752674626283,0.16846361,118720.0,118710.0,0.97006771]
[1752674626498,0.16846361,118720.0,118710.0,0.50294758]
[1752674626704,0.20046361,118720.0,118710.0,0.50294758]
[1752674627826,0.20046361,118720.0,118700.0,0.003]
[1752674627827,0.17690154,118710.0,118700.0,0.003]
[1752674628060,0.20810154,118710.0,118700.0,0.003]
[1752674628269,0.20810154,118710.0,118700.0,0.141]
[1752674629325,0.29361182,118710.0,118700.0,0.141]
[1752674631248,0.20810154,118710.0,118700.0,0.141]
[1752674634913,0.20810154,118710.0,118700.0,0.14126479]
[1752674637706,0.17690154,118710.0,118700.0,0.14126479]
[1752674637904,0.20770154,118710.0,118700.0,0.14126479]
[1752674644512,0.17690154,118710.0,118700.0,0.14126479]
[1752674646012,0.1684778,118710.0,118700.0,0.64487464]
[1752674646211,0.17690154,118710.0,118700.0,0.98487464]
[1752674647180,0.17690154,118710.0,118700.0,0.48126479]
[1752674647395,0.19320154,118710.0,118700.0,0.48126479]
[1752674647822,0.17690154,118710.0,118700.0,0.48126479]
[1752674648043,0.17690154,118710.0,118700.0,0.34326479]
[1752674648262,0.20840154,118710.0,118700.0,0.48106479]
[1752674648475,0.20840154,118710.0,118700.0,0.34326479]
[1752674648700,0.29391182,118710.0,118700.0,0.00326479]
[1752674650001,0.29391182,118710.0,118700.0,0.0032648]
[1752674650467,0.29391182,118710.0,118700.0,1e-08]
[1752674650687,0.85588119,118710.0,118700.0,1e-08]
[1752674651166,0.2163563,118690.0,118680.0,0.003]
[1752674651433,0.43962658,118690.0,118680.0,0.00312749]
[1752674651646,0.1853563,118690.0,118680.0,0.50673734]
[1752674652366,0.2153563,118690.0,118680.0,0.14084749]
[1752674653317,0.2153563,118690.0,118680.0,0.65303467]
[1752674653318,0.1853563,118690.0,118680.0,0.65303467]
[1752674653530,0.1853563,118690.0,118680.0,1.02563467]
[1752674653748,0.1853563,118690.0,118680.0,1.05102871]
[1752674653964,0.1853563,118690.0,118680.0,1.22797497]
[1752674654190,0.18535658,118690.0,118680.0,1.2195491]
[1752674654412,0.18535658,118690.0,118680.0,1.05102871]
[1752674655073,0.18635658,118690.0,118680.0,1.05102871]
[1752674655293,0.18635658,118690.0,118680.0,1.23640077]
[1752674655517,0.17624507,118690.0,118680.0,1.22797504]
[1752674655748,0.18467023,118690.0,118680.0,1.2195491]
[1752674655979,0.18467023,118690.0,118680.0,1.05102871]
[1752674656674,0.00942481,118690.0,118680.0,1.33033657]
[1752674656889,0.20320599,118690.0,118680.0,1.33033671]
[1752674657105,0.02627457,118690.0,118680.0,1.33876223]
[1752674657317,0.03469973,118690.0,118680.0,3.25300223]
[1752674657524,0.21163122,118690.0,118680.0,2.70144971]
[1752674657742,0.03369973,118690.0,118680.0,2.70987523]
[1752674658439,0.1684778,118710.0,118700.0,0.34]
[1752674658668,0.16846361,118720.0,118700.0,1.78027511]
[1752674658883,0.16846361,118720.0,118700.0,1.2850895]
[1752674658884,0.01684664,118710.0,118700.0,1.2850895]
[1752674659092,0.03369377,118710.0,118700.0,2.4801125]
[1752674659325,0.00842282,118720.0,118710.0,0.2255486]
[1752674659538,0.20215496,118720.0,118710.0,0.30263549]
[1752674659768,0.19373263,118720.0,118710.0,0.29421189]
[1752674660160,0.19373263,118720.0,118710.0,0.79782174]
[1752674660607,0.18530974,118720.0,118710.0,0.62092013]
[1752674661019,0.18530974,118720.0,118710.0,0.72676013]
[1752674662069,0.18530974,118720.0,118710.0,0.50360985]
[1752674662288,0.18530974,118720.0,118710.0,0.64124985]
[1752674664765,0.18530974,118720.0,118710.0,0.81815146]
[1752674664979,0.18530974,118720.0,118710.0,0.80972765]
[1752674665130,0.18530974,118720.0,118710.0,0.81815154]
[1752674665755,0.17688671,118720.0,118710.0,0.66597374]
[1752674665933,0.17688671,118720.0,118710.0,0.65754985]
[1752674666536,0.17688671,118720.0,118710.0,0.83445154]
[1752674667173,0.17688671,118720.0,118710.0,0.69681154]
[1752674667370,0.17688671,118720.0,118710.0,0.84279528]
[1752674667658,0.17688671,118720.0,118710.0,0.3718327]
[1752674667871,0.19373278,118720.0,118710.0,0.88386608]
[1752674668321,0.19373278,118720.0,118710.0,0.87544255]
[1752674668535,0.19373278,118720.0,118710.0,0.85859528]
[1752674668750,0.19373278,118720.0,118710.0,0.3718327]
[1752674668951,0.18530989,118720.0,118710.0,0.85017154]
[1752674669189,0.17688679,118720.0,118710.0,0.85017154]
[1752674669394,0.17688679,118720.0,118710.0,0.85117154]
[1752674669620,0.16846361,118720.0,118710.0,0.64216985]
[1752674670856,0.17688664,118720.0,118710.0,0.84339521]
[1752674671058,0.17688664,118720.0,118710.0,1.85842954]
[1752674671268,0.17688664,118720.0,118710.0,1.85834954]
[1752674671615,0.17688664,118720.0,118710.0,1.72086954]
[1752674671812,0.00842282,118720.0,118710.0,1.95293348]
[1752674672018,0.2021556,118720.0,118710.0,1.95293362]
[1752674672223,0.01684578,118720.0,118710.0,1.96135701]
[1752674672429,0.01684578,118720.0,118710.0,2.30135701]
[1752674672430,0.01684543,118720.0,118710.0,2.30135701]
[1752674672629,0.02526846,118720.0,118710.0,2.30135701]
[1752674672842,0.03369164,118720.0,118710.0,2.30135701]
[1752674673334,0.20215525,118720.0,118710.0,2.30135701]
[1752674674419,0.20215525,118720.0,118710.0,2.29293362]
[1752674674772,0.20215525,118720.0,118710.0,2.27238062]
[1752674675068,0.19373264,118720.0,118710.0,2.15299409]
[1752674675504,0.19373264,118720.0,118710.0,2.16141762]
[1752674675727,0.18530982,118720.0,118710.0,2.15299409]
[1752674676382,0.18530982,118720.0,118710.0,2.16141762]
[1752674676616,0.18530982,118720.0,118710.0,1.95920513]
[1752674676840,0.17688679,118720.0,118710.0,1.84249485]
[1752674677516,0.17188679,118720.0,118710.0,1.84249485]
[1752674678451,0.17188679,118720.0,118710.0,0.98204985]
[1752674679328,0.17188679,118720.0,118710.0,0.84460985]
[1752674679556,0.20418679,118720.0,118710.0,0.001]
[1752674679756,0.20418679,118720.0,118710.0,0.1384]
[1752674680467,0.20418679,118720.0,118710.0,0.64200985]
[1752674680690,0.20418679,118720.0,118710.0,0.1374]
[1752674681142,0.20518679,118720.0,118710.0,0.1374]
[1752674681588,0.20518679,118720.0,118710.0,0.64100985]
[1752674681589,0.1627774,118720.0,118710.0,0.64100985]
[1752674682855,0.1617774,118720.0,118710.0,0.1374]
[1752674683072,0.1617774,118720.0,118710.0,0.64100985]
[1752674683282,0.1617774,118720.0,118710.0,0.80948765]
[1752674683561,0.1617774,118720.0,118710.0,0.84168765]
[1752674683778,0.1617774,118720.0,118710.0,0.68163366]
[1752674683991,0.1617774,118720.0,118710.0,0.8585352]
[1752674684203,0.18530946,118720.0,118710.0,1.29246908]
[1752674684417,0.01684585,118720.0,118710.0,1.309316]
[1752674684625,0.19373264,118720.0,118710.0,1.309316]
[1752674684838,0.19373264,118720.0,118710.0,1.30089261]
[1752674685485,0.19373264,118720.0,118710.0,1.29246908]
[1752674685702,0.18530982,118720.0,118710.0,1.06652013]
[1752674686576,0.18530982,118720.0,118710.0,1.24442182]
[1752674686944,0.18530982,118720.0,118710.0,1.27626902]
[1752674687317,0.18530982,118720.0,118710.0,1.26784549]
[1752674687525,0.18530982,118720.0,118710.0,1.25942182]
[1752674687787,0.18530982,118720.0,118710.0,1.26784563]
[1752674687975,0.18530982,118720.0,118710.0,2.7136849]
[1752674688184,0.01684621,118720.0,118710.0,2.73840829]
[1752674688646,0.18530982,118720.0,118710.0,2.7299849]
[1752674688859,0.18530946,118720.0,118710.0,2.73840786]
[1752674689074,0.01684585,118720.0,118710.0,2.73840786]
[1752674689694,0.01684585,118720.0,118710.0,2.76320294]
[1752674689917,0.19373256,118720.0,118710.0,2.2082969]
[1752674690133,0.19373256,118720.0,118710.0,2.1081449]
[1752674690353,0.17688671,118720.0,118710.0,1.93124321]
[1752674690566,0.17688671,118720.0,118710.0,0.50307508]
[1752674690777,0.17688671,118720.0,118710.0,1.00668493]
[1752674691400,0.17688671,118720.0,118710.0,1.19717354]
[1752674691615,0.0186,118730.0,118720.0,0.34842268]
[1752674691826,0.0186,118730.0,118720.0,3.55134198]
[1752674691827,0.003,118730.0,118720.0,3.55134198]
[1752674692039,0.003,118730.0,118720.0,3.66265259]
[1752674692245,0.003,118730.0,118720.0,3.63685226]
[1752674692682,0.0001438,118730.0,118720.0,3.66265259]
[1752674692870,0.0001438,118730.0,118720.0,6.30673326]
[1752674693659,0.003,118750.0,118740.0,0.5803405]
[1752674693861,0.00315119,118750.0,118740.0,5.28382448]
[1752674694466,0.003,118770.0,118760.0,0.58010788]
[1752674694690,0.00308488,118770.0,118760.0,5.00051501]
[1752674695504,0.01983522,118790.0,118780.0,0.20817527]
[1752674695845,0.01983522,118790.0,118780.0,1.2894554]
[1752674696045,0.02825301,118790.0,118780.0,1.2894554]
[1752674696255,0.01983522,118790.0,118780.0,1.2894554]
[1752674696478,0.02825301,118790.0,118780.0,1.2894554]
[1752674696684,0.03667101,118790.0,118780.0,1.2894554]
[1752674696899,0.20503535,118790.0,118780.0,1.30648655]
[1752674697103,0.20503599,118790.0,118780.0,1.0917297]
[1752674697314,0.17978255,118790.0,118780.0,1.0917297]
[1752674697528,0.17978255,118790.0,118780.0,1.26010821]
[1752674697761,0.17978255,118790.0,118780.0,1.2769457]
[1752674697985,0.17978255,118790.0,118780.0,1.26852706]
[1752674698215,0.003,118790.0,118780.0,6.30196412]
[1752674698433,0.003,118790.0,118780.0,6.24493097]
[1752674698699,0.003,118790.0,118780.0,6.75771627]
[1752674698928,0.003,118790.0,118780.0,6.78260794]
[1752674699140,0.03696569,118810.0,118800.0,0.51676759]
[1752674699363,0.18897297,118810.0,118800.0,0.598996]
[1752674699580,0.18055646,118810.0,118800.0,0.48192]
[1752674699788,0.19555646,118810.0,118800.0,0.48192]
[1752674700010,0.19555646,118810.0,118800.0,0.34]
[1752674700011,0.21085646,118810.0,118800.0,0.34]
[1752674700444,0.21085646,118810.0,118800.0,0.48228]
[1752674700652,0.21085646,118810.0,118800.0,0.34]
[1752674701561,0.20878241,118790.0,118780.0,0.02944957]
[1752674701767,0.71239226,118790.0,118780.0,0.02944957]
[1752674701985,0.71239226,118790.0,118780.0,0.36944957]
[1752674702195,0.20878241,118790.0,118780.0,0.02544957]
[1752674702408,0.20849729,118780.0,118770.0,0.49204]
[1752674702651,0.79761742,118780.0,118770.0,0.15204]
[1752674702866,0.20851218,118770.0,118760.0,0.003]
[1752674703077,0.79763231,118770.0,118760.0,0.003]
[1752674703291,0.29402246,118770.0,118760.0,0.003]
[1752674703497,0.79763231,118770.0,118760.0,0.003]
[1752674703738,0.29402246,118770.0,118760.0,0.003]
[1752674704603,0.29402246,118770.0,118760.0,1e-08]
[1752674704820,0.79763231,118770.0,118760.0,1e-08]
[1752674705917,0.29402246,118770.0,118760.0,1e-08]